bitfinex-derivatives/quotes_SOLF0:USTF0_20240912
["timestamp","ask_amount","ask_price","bid_price","bid_amount"]
[1726133701118,114.56913561,134.99,134.95,3.3343]
[1726133701119,3.3337,134.98,134.95,3.3343]
[1726133702417,3.3339,134.97,134.94,14.6945]
[1726133705912,3.3337,134.98,134.95,3.3343]
[1726133706113,103.20913561,134.99,134.95,11.36]
[1726133706313,103.20913561,134.99,134.97,14.6937]
[1726133707213,3.3333,135.0,134.97,14.6937]
[1726133707715,3.333,135.01,134.97,14.6937]
[1726133708112,3.333,135.01,134.98,14.6935]
[1726133708823,228.0,135.09,134.99,11.36]
[1726133709017,1.15107871,135.06,134.99,11.36]
[1726133709217,1.3598,135.08,134.99,11.36]
[1726133709432,3.3323,135.04,135.01,11.36]
[1726133709727,1.3598,135.08,135.02,11.36]
[1726133709728,1.2973,135.07,135.02,11.36]
[1726133709918,1.3598,135.08,135.02,11.36]
[1726133709919,4.48291039,135.06,135.02,14.6925]
[1726133710114,3.3317,135.06,135.02,14.6925]
[1726133710916,1.3598,135.08,135.02,14.6925]
[1726133710917,3.3319,135.05,135.02,14.6925]
[1726133712118,1.3598,135.08,135.02,11.36]
[1726133712315,1.15108487,135.07,135.02,11.36]
[1726133712811,3.332,135.05,135.02,11.36]
[1726133719434,3.3317,135.06,135.03,11.36]
[1726133720325,3.3317,135.06,135.03,14.6922]
[1726133728130,103.13887465,135.1,135.05,11.36]
[1726133728329,1.1513599,135.09,135.07,11.36]
[1726133728735,103.13887465,135.1,135.07,11.36]
[1726133728926,3.331,135.09,135.07,11.36]
[1726133730439,3.331,135.09,135.06,3.3315]
[1726133730629,3.331,135.09,135.07,11.36]
[1726133731428,12.7672,135.14,135.07,11.36]
[1726133731429,3.3307,135.1,135.07,11.36]
[1726133731743,3.3307,135.1,135.07,14.6914]
[1726133732433,3.3305,135.11,135.07,14.6914]
[1726133734137,1.15119904,135.1,135.07,14.6914]
[1726133734333,3.3305,135.11,135.07,14.6914]
[1726133734541,1.15127569,135.1,135.07,14.6914]
[1726133735441,1.15127569,135.1,135.08,11.36]
[1726133736747,1.15127569,135.09,135.08,11.36]
[1726133737946,1.15186446,135.09,135.08,11.36]
[1726133742146,1.15208102,135.09,135.08,11.36]
[1726133742351,3.3307,135.1,135.08,11.36]
[1726133742742,12.7672,135.14,135.06,3.3315]
[1726133742943,1.15208129,135.13,135.07,11.36]
[1726133743344,3.3306,135.11,135.07,14.6914]
[1726133745738,3.3307,135.1,135.07,14.6914]
[1726133747854,1.4072,135.14,135.09,11.36]
[1726133748042,1.15234597,135.13,135.09,11.36]
[1726133748953,3.3303,135.12,135.09,11.36]
[1726133749155,11.36,135.15,135.09,11.36]
[1726133749347,1.15239359,135.14,135.09,11.36]
[1726133750153,11.36,135.15,135.09,11.36]
[1726133750357,1.15239363,135.14,135.1,11.36]
[1726133750854,3.3304,135.11,135.1,11.36]
[1726133762459,3.3308,135.1,135.05,4.187]
[1726133762663,11.36,135.14,135.05,4.187]
[1726133762851,11.36,135.12,135.06,11.36]
[1726133763050,3.3308,135.1,135.06,14.6916]
[1726133763654,3.3308,135.1,135.07,11.36]
[1726133764651,1.15262958,135.09,135.07,11.36]
[1726133765354,3.3308,135.1,135.07,11.36]
[1726133765559,1.15264341,135.09,135.07,11.36]
[1726133766764,3.3305,135.11,135.08,11.36]
[1726133766965,115.84923805,135.15,135.05,4.187]
[1726133766966,104.48923805,135.15,135.1,11.36]
[1726133767162,1.15272248,135.14,135.1,11.36]
[1726133767358,3.3301,135.13,135.1,11.36]
[1726133767568,1.15272248,135.12,135.1,11.36]
[1726133767866,4.48292248,135.12,135.1,11.36]
[1726133768170,1.15272248,135.11,135.1,11.36]
[1726133768754,1.15270574,135.11,135.1,11.36]
[1726133768955,4.48310574,135.11,135.1,11.36]
[1726133769156,4.48310574,135.11,135.05,4.187]
[1726133769373,1.15276877,135.1,135.08,11.36]
[1726133769960,3.3304,135.11,135.08,11.36]
[1726133770166,1.15276833,135.1,135.08,11.36]
[1726133770780,3.3304,135.11,135.08,11.36]
[1726133771074,1.1527682,135.1,135.08,11.36]
[1726133771666,3.3304,135.11,135.08,11.36]
[1726133773569,3.3304,135.11,135.08,14.691]
[1726133774967,3.3304,135.12,135.08,14.6909]
[1726133775770,3.33,135.13,135.1,11.36]
[1726133775977,103.09163805,135.15,135.12,11.36]
[1726133776173,1.15263274,135.14,135.12,11.36]
[1726133777277,4.48243274,135.14,135.12,11.36]
[1726133777464,3.3298,135.14,135.12,11.36]
[1726133779673,106.42113805,135.15,135.12,11.36]
[1726133779868,1.15256211,135.14,135.12,11.36]
[1726133781178,15.11305442,135.18,135.12,11.36]
[1726133781480,3.3296,135.15,135.12,11.36]
[1726133781670,1.15256258,135.14,135.12,11.36]
[1726133782067,15.11305442,135.18,135.12,11.36]
[1726133782271,1.15255449,135.17,135.12,11.36]
[1726133782782,3.3297,135.14,135.12,11.36]
[1726133786283,15.11305442,135.18,135.1,3.3305]
[1726133786284,3.3299,135.13,135.11,11.36]
[1726133786470,11.36,135.15,135.05,4.187]
[1726133786674,11.36,135.15,135.08,11.36]
[1726133786675,1.15263356,135.14,135.08,11.36]
[1726133786875,3.3305,135.11,135.08,11.36]
[1726133787979,3.3307,135.1,135.07,3.3312]
[1726133788183,3.3307,135.1,135.08,11.36]
[1726133792272,11.36,135.13,135.07,11.36]
[1726133792478,12.51259938,135.12,135.07,11.36]
[1726133792783,1.15259938,135.11,135.07,11.36]
[1726133794175,11.36,135.12,135.07,11.36]
[1726133794476,11.36,135.12,135.06,3.3315]
[1726133794477,1.15255234,135.11,135.06,3.3315]
[1726133794679,1.15255234,135.11,135.06,14.6915]
[1726133795079,3.3308,135.1,135.06,14.6915]
[1726133795289,1.15255234,135.09,135.06,14.6915]
[1726133795670,4.48345234,135.09,135.06,14.6915]
[1726133795875,3.3309,135.09,135.06,14.6915]
[1726133799380,3.332,135.05,135.01,11.36]
[1726133799789,3.3317,135.06,135.02,11.36]
[1726133799991,1.15204726,135.05,135.02,11.36]
[1726133800384,3.3317,135.06,135.02,11.36]
[1726133800889,3.3317,135.06,135.03,3.3324]
[1726133803489,3.3317,135.06,135.03,14.6924]
[1726133806697,3.3317,135.06,135.03,11.36]
[1726133807896,11.36,135.09,135.03,11.36]
[1726133808393,3.3314,135.07,135.04,3.332]
[1726133811191,3.3314,135.07,135.03,14.6923]
[1726133814914,3.3314,135.07,135.04,3.3321]
[1726133818008,11.36,135.09,135.03,14.6923]
[1726133818315,11.36,135.07,135.01,11.36]
[1726133819218,3.67296296,135.1,135.01,11.36]
[1726133819419,12.51319681,135.09,135.03,11.36]
[1726133819718,1.15319681,135.08,135.03,11.36]
[1726133820313,3.3316,135.07,135.03,11.36]
[1726133821920,3.3316,135.07,135.04,3.3321]
[1726133822722,3.3313,135.08,135.05,3.3318]
[1726133823124,15.00138706,135.1,135.0,2.7217]
[1726133823321,3.3318,135.06,135.02,14.6925]
[1726133823510,11.36,135.07,135.01,11.36]
[1726133824117,3.332,135.05,135.01,14.6927]
[1726133824424,3.332,135.05,135.01,11.36]
[1726133825926,3.332,135.05,135.02,3.3326]
[1726133827831,3.332,135.05,135.01,14.6928]
[1726133828231,11.36,135.07,135.01,11.36]
[1726133828528,1.15320718,135.06,135.01,11.36]
[1726133828826,3.3323,135.04,135.01,11.36]
[1726133829523,3.3323,135.04,135.0,17.4147]
[1726133832427,3.3324,135.03,135.0,2.7217]
[1726133832827,11.36,135.06,135.0,2.7217]
[1726133833642,3.3322,135.04,135.0,6.0546]
[1726133837630,11.36,135.06,135.01,3.3327]
[1726133838035,11.36,135.07,135.0,14.0817]
[1726133838230,1.15333369,135.06,135.0,14.0817]
[1726133838927,3.332,135.05,135.0,14.0817]
[1726133839328,3.332,135.05,135.01,11.36]
[1726133839626,15.0882359,135.09,135.01,11.36]
[1726133839822,1.1532317,135.08,135.03,11.36]
[1726133840121,4.4845317,135.08,135.04,3.332]
[1726133840332,3.3313,135.08,135.04,3.332]
[1726133841724,3.3313,135.08,135.04,14.692]
[1726133847942,103.14021334,135.1,135.06,11.36]
[1726133848637,3.3311,135.09,135.06,11.36]
[1726133849631,3.3312,135.08,135.04,16.0827]
[1726133850037,3.3312,135.08,135.04,12.7507]
[1726133850233,3.331,135.09,135.05,14.6917]
[1726133850438,3.331,135.09,135.05,11.36]
[1726133851041,3.331,135.09,135.05,14.6918]
[1726133854844,1.15298243,135.08,135.05,14.6918]
[1726133857950,3.3312,135.08,135.05,14.6918]
[1726133869572,3.331,135.09,135.05,14.6918]
[1726133873572,3.3312,135.08,135.05,14.6918]
[1726133877272,3.3312,135.08,135.05,3.3318]
[1726133877477,3.3312,135.08,135.05,14.6918]
[1726133881183,3.3312,135.08,135.05,3.3318]
[1726133881384,3.3312,135.08,135.05,14.6918]
[1726133883592,3.331,135.09,135.06,14.6916]
[1726133883778,103.11006689,135.13,135.08,11.36]
[1726133884082,3.3306,135.11,135.08,11.36]
[1726133884390,1.15285234,135.1,135.08,11.36]
[1726133885090,103.11006689,135.13,135.08,11.36]
[1726133885284,1.15282692,135.12,135.08,11.36]
[1726133885589,114.47006689,135.13,135.08,11.36]
[1726133885784,1.15282684,135.12,135.08,11.36]
[1726133886390,3.3305,135.11,135.08,11.36]
[1726133887591,3.3305,135.11,135.07,3.3312]
[1726133887592,3.3308,135.1,135.07,14.6912]
[1726133889689,3.3309,135.09,135.06,11.36]
[1726133895301,3.3312,135.08,135.06,11.36]
[1726133895796,15.02474494,135.1,135.04,1.3907]
[1726133895996,12.51297531,135.09,135.02,11.36]
[1726133896198,1.15297531,135.08,135.02,11.36]
[1726133896403,3.332,135.05,135.02,11.36]
[1726133896788,11.36,135.09,135.02,11.36]
[1726133896994,3.3317,135.06,135.02,14.6925]
[1726133899897,3.3317,135.06,135.04,11.36]
[1726133902103,3.3315,135.07,135.04,11.36]
[1726133903204,3.3316,135.06,135.04,11.36]
[1726133906206,3.3315,135.07,135.04,11.36]
[1726133906900,3.3315,135.07,135.04,14.6921]
[1726133913519,3.3317,135.06,135.04,11.36]
[1726133917713,3.3317,135.06,135.03,14.6923]
[1726133918719,3.3319,135.05,135.03,14.6923]
[1726133918921,3.3319,135.05,135.03,3.3323]
[1726133925417,3.3319,135.05,135.03,14.6923]
[1726133925717,3.3317,135.06,135.03,14.6923]
[1726133927036,3.3315,135.07,135.05,11.36]
[1726133927223,11.36,135.1,135.05,11.36]
[1726133927418,1.1529875,135.09,135.05,11.36]
[1726133927727,3.3313,135.08,135.05,14.6917]
[1726133929032,3.331,135.09,135.06,11.36]
[1726133929218,115.86367373,135.12,135.06,11.36]
[1726133929417,1.1528832,135.11,135.06,11.36]
[1726133929828,3.3308,135.1,135.07,3.3313]
[1726133932420,115.86367373,135.12,135.06,14.6916]
[1726133932630,1.15289078,135.11,135.06,14.6916]
[1726133932822,3.3309,135.1,135.06,14.6916]
[1726133933423,3.331,135.09,135.06,14.6916]
[1726133937526,11.36,135.09,135.02,4.7226]
[1726133937719,11.36,135.08,135.02,4.7226]
[1726133937926,11.36,135.08,134.99,1.3347]
[1726133938128,3.3321,135.05,135.01,14.6928]
[1726133938333,3.3321,135.05,135.01,11.36]
[1726133938526,3.3319,135.06,135.02,3.3325]
[1726133940229,3.3319,135.05,135.02,3.3325]
[1726133940422,3.3319,135.05,135.01,14.6927]
[1726133941122,11.36,135.04,134.98,9.90801255]
[1726133941325,11.36,135.02,134.98,9.90801255]
[1726133941936,3.3334,134.99,134.98,9.90801255]
[1726133942328,4.48699718,134.99,134.98,9.90801255]
[1726133942835,4.48698138,134.99,134.98,9.90801255]
[1726133943022,3.3339,134.97,134.94,1.3996]
[1726133943835,3.3341,134.96,134.93,11.36]
[1726133944236,11.36,135.01,134.93,11.36]
[1726133944534,11.36,134.99,134.92,1.3211]
[1726133944741,2.6768,135.02,134.92,1.3211]
[1726133944742,12.51333493,134.98,134.92,1.3211]
[1726133944942,1.15333493,134.97,134.92,1.3211]
[1726133945424,3.3345,134.95,134.92,1.3211]
[1726133948235,11.36,134.96,134.9,4.7282]
[1726133948826,3.3346,134.94,134.9,4.7282]
[1726133956037,11.36,134.95,134.9,1.3928]
[1726133956241,11.36,134.95,134.89,3.3358]
[1726133956436,3.335,134.93,134.89,3.3358]
[1726133956631,11.36,134.95,134.89,3.3358]
[1726133956938,11.36,134.93,134.89,3.3358]
[1726133957139,3.3353,134.92,134.88,3.336]
[1726133957339,11.36,134.93,134.88,3.336]
[1726133957836,11.36,134.92,134.86,4.645]
[1726133958026,11.36,134.92,134.86,1.3085]
[1726133958542,11.36,134.92,134.86,4.6449]
[1726133958543,3.3358,134.9,134.86,4.6449]
[1726133958841,11.36,134.92,134.86,4.6449]
[1726133960036,3.3357,134.9,134.86,4.6449]
[1726133960236,3.3357,134.9,134.86,3.3364]
[1726133960639,3.3358,134.89,134.86,3.3364]
[1726133960843,3.3358,134.89,134.85,17.44]
[1726133961235,3.3358,134.89,134.85,16.1204]
[1726133963146,3.3358,134.89,134.86,3.3365]
[1726133969750,3.3362,134.88,134.85,4.7605]
[1726133971657,3.3362,134.88,134.86,3.3365]
[1726133976253,14.696,134.89,134.86,3.3365]
[1726133977260,3.336,134.89,134.86,3.3365]
[1726133978355,11.36,134.9,134.85,1.4237]
[1726133978559,11.36,134.89,134.82,17.84248309]
[1726133981161,3.3364,134.87,134.84,3.3369]
[1726133982566,3.3367,134.86,134.84,3.3369]
[1726133983276,3.3367,134.86,134.83,3.3373]
[1726133984360,3.3367,134.86,134.82,2.745]
[1726133984361,3.337,134.85,134.82,6.0825]
[1726133984658,11.36,134.86,134.81,11.53897507]
[1726133985372,3.3371,134.85,134.81,14.87657507]
[1726133986867,3.3371,134.84,134.81,14.87657507]
[1726133987870,3.3371,134.84,134.82,3.3375]
[1726133990070,3.3369,134.85,134.82,3.3375]
[1726133993875,14.6967,134.86,134.82,3.3375]
[1726133994076,14.6967,134.86,134.81,11.53897507]
[1726133994077,125.52303002,134.93,134.83,3.3371]
[1726133994273,11.36,134.87,134.81,11.53897507]
[1726133994475,3.73831139,134.89,134.81,11.53897507]
[1726133994783,14.6962,134.88,134.82,11.36]
[1726133994970,14.6962,134.88,134.82,12.7488]
[1726133995869,14.6962,134.88,134.85,3.3367]
[1726133997278,22.27,134.94,134.86,3.3364]
[1726133997475,11.36,134.9,134.83,12.6703]
[1726133997883,14.6958,134.9,134.86,3.3365]
[1726133998082,11.36,134.9,134.86,3.3365]
[1726133999788,3.3359,134.89,134.86,3.3365]
[1726134002099,3.3359,134.89,134.83,12.6703]
[1726134002100,14.6961,134.88,134.85,3.3367]
[1726134005201,3.3363,134.87,134.84,3.3369]
[1726134008011,3.336,134.89,134.86,3.3366]
[1726134008907,3.336,134.89,134.85,3.3367]
[1726134009295,3.3361,134.88,134.85,3.3367]
[1726134011310,107.36997413,134.95,134.84,11.36]
[1726134011311,129.63997413,134.95,134.84,11.36]
[1726134011512,129.63997413,134.95,134.84,12.7329]
[1726134011513,11.36,134.91,134.84,12.7329]
[1726134011711,3.3358,134.9,134.86,3.3364]
[1726134011900,11.36,134.93,134.87,11.36]
[1726134012710,107.36997413,134.95,134.87,11.36]
[1726134012908,11.36,134.93,134.87,11.36]
[1726134013220,3.3355,134.91,134.87,14.6962]
[1726134015408,3.3356,134.9,134.87,3.3362]
[1726134016426,3.3355,134.91,134.87,3.3362]
[1726134016719,11.36,134.9,134.86,3.3365]
[1726134016916,11.36,134.92,134.86,3.3365]
[1726134017124,3.3356,134.9,134.86,3.3365]
[1726134017923,11.36,134.9,134.86,3.3365]
[1726134018116,11.36,134.89,134.84,1.3729]
[1726134018920,3.3362,134.88,134.84,4.7099]
[1726134021221,3.3359,134.89,134.84,1.3729]
[1726134021928,3.3359,134.89,134.85,14.6967]
[1726134023522,3.3363,134.88,134.85,3.3367]
[1726134023727,3.3363,134.88,134.84,16.0699]
[1726134025417,3.3363,134.88,134.84,12.7329]
[1726134025826,3.3364,134.87,134.84,12.7329]
[1726134026019,3.3364,134.87,134.84,16.0699]
[1726134028022,3.3364,134.87,134.84,4.7099]
[1726134035426,3.3362,134.88,134.85,3.3368]
[1726134035628,11.36,134.89,134.84,1.3729]
[1726134036634,3.3364,134.87,134.85,3.3367]
[1726134038138,3.3364,134.87,134.84,4.7098]
[1726134042739,3.3362,134.88,134.85,3.3366]
[1726134043434,3.3363,134.87,134.85,3.3366]
[1726134044030,3.3363,134.87,134.84,4.7099]
[1726134044234,3.3366,134.86,134.84,4.7099]
[1726134044430,3.3366,134.86,134.84,3.337]
[1726134050546,3.3365,134.87,134.84,3.337]
[1726134052830,3.3365,134.87,134.82,12.7488]
[1726134052831,3.3365,134.87,134.85,3.3368]
[1726134056046,3.3366,134.86,134.84,3.3369]
[1726134058447,3.3369,134.85,134.83,3.3372]
[1726134059342,3.3367,134.86,134.83,3.3372]
[1726134060552,3.3365,134.87,134.84,3.3369]
[1726134060744,3.3365,134.87,134.82,12.7488]
[1726134061342,3.3365,134.87,134.84,3.3369]
[1726134062847,3.3365,134.87,134.85,3.3368]
[1726134065353,3.3362,134.88,134.85,3.3368]
[1726134066054,3.3363,134.87,134.85,3.3368]
[1726134067750,3.3362,134.88,134.85,3.3368]
[1726134069352,3.3363,134.87,134.85,3.3368]
[1726134070578,3.3362,134.88,134.85,3.3368]
[1726134070857,11.36,134.86,134.81,11.53897507]
[1726134071068,3.3376,134.82,134.81,11.53897507]
[1726134071266,14.6976,134.82,134.81,11.53897507]
[1726134072252,3.3373,134.83,134.81,11.53897507]
[1726134072455,11.36,134.83,134.81,11.53897507]
[1726134073058,14.6974,134.83,134.81,11.53897507]
[1726134078260,14.6976,134.82,134.81,11.53897507]
[1726134087657,3.3376,134.82,134.81,11.53897507]
[1726134088061,14.6976,134.82,134.81,11.53897507]
[1726134097578,3.3383,134.79,134.76,3.3389]
[1726134097878,103.33681719,134.84,134.76,3.3389]
[1726134098077,3.3382,134.8,134.76,3.3389]
[1726134098279,11.36,134.81,134.76,3.3389]
[1726134098666,3.3383,134.79,134.76,3.3389]
[1726134100180,3.3383,134.79,134.75,4.7022]
[1726134100976,14.6983,134.79,134.75,4.7022]
[1726134101202,3.3386,134.78,134.75,4.7022]
[1726134102375,3.3386,134.78,134.76,3.339]
[1726134107177,3.3389,134.77,134.75,4.7022]
[1726134111481,3.3387,134.78,134.75,4.7022]
[1726134117493,11.36,134.79,134.75,4.7022]
[1726134117899,3.3387,134.78,134.75,4.7022]
[1726134118900,3.3387,134.78,134.76,3.339]
[1726134119286,3.3384,134.79,134.76,3.339]
[1726134120295,3.3386,134.78,134.75,4.7021]
[1726134120999,3.3388,134.77,134.75,4.7021]
[1726134121393,3.3388,134.77,134.75,1.363]
[1726134122505,1.3984,134.83,134.75,1.363]
[1726134122691,11.36,134.8,134.75,1.363]
[1726134123200,11.36,134.8,134.77,3.3387]
[1726134124894,3.3384,134.79,134.77,3.3387]
[1726134127204,14.6982,134.8,134.77,3.3387]
[1726134129602,11.36,134.79,134.77,3.3387]
[1726134129793,14.6983,134.79,134.76,3.3389]
[1726134130504,3.3386,134.78,134.75,4.7022]
[1726134132202,3.3388,134.77,134.75,4.7022]
[1726134133003,3.3388,134.77,134.75,1.363]
[1726134133311,11.36,134.78,134.74,26.28580081]
[1726134133312,3.3391,134.76,134.74,26.28580081]
[1726134133600,11.36,134.76,134.74,22.94630081]
[1726134133810,14.6992,134.76,134.74,22.94630081]
[1726134134007,11.36,134.76,134.74,22.94630081]
[1726134134201,14.6993,134.75,134.74,22.94630081]
[1726134140515,11.36,134.75,134.74,22.94630081]
[1726134143206,11.36,134.76,134.74,26.28580081]
[1726134143409,3.3389,134.77,134.74,26.28580081]
[1726134144715,11.36,134.76,134.74,26.28580081]
[1726134144907,3.3389,134.77,134.74,26.28580081]
[1726134145108,14.6989,134.77,134.74,26.28580081]
[1726134147424,3.3389,134.77,134.74,26.28580081]
[1726134147616,14.6989,134.77,134.74,26.28580081]
[1726134147814,132.28121719,134.84,134.75,3.3392]
[1726134147815,3.3387,134.78,134.75,3.3392]
[1726134148022,14.6987,134.78,134.75,3.3392]
[1726134151923,14.6987,134.78,134.74,26.28570081]
[1726134152825,1.4189,134.81,134.74,26.28570081]
[1726134152826,14.6989,134.77,134.74,26.28570081]
[1726134153021,2.714,134.81,134.75,3.3392]
[1726134153224,11.36,134.77,134.75,3.3392]
[1726134162138,11.36,134.77,134.74,26.28570081]
[1726134162542,11.36,134.77,134.74,22.94630081]
[1726134163142,11.36,134.77,134.75,3.3393]
[1726134165144,14.6988,134.77,134.74,26.28570081]
[1726134165639,11.36,134.77,134.75,3.3393]
[1726134167345,14.6989,134.77,134.74,26.28570081]
[1726134169341,2.714,134.81,134.74,22.94630081]
[1726134169546,11.36,134.77,134.74,22.94630081]
[1726134170145,14.699,134.77,134.74,26.28580081]
[1726134171244,3.3391,134.76,134.74,22.94630081]
[1726134174541,3.3393,134.75,134.74,22.94630081]
[1726134175157,3.3392,134.76,134.74,22.94630081]
[1726134175383,14.6992,134.76,134.74,22.94630081]
[1726134176752,3.3393,134.75,134.74,22.94630081]
[1726134181683,14.6992,134.76,134.74,22.94630081]
[1726134182559,4.0139,134.81,134.74,22.94630081]
[1726134182766,11.36,134.78,134.74,22.94630081]
[1726134183062,11.36,134.77,134.74,22.94630081]
[1726134183452,3.3391,134.76,134.74,22.94630081]
[1726134183755,11.36,134.77,134.74,22.94630081]
[1726134183960,3.3391,134.76,134.74,22.94630081]
[1726134185062,3.3393,134.75,134.74,22.94630081]
[1726134186255,3.3392,134.76,134.74,22.94630081]
[1726134190765,14.6993,134.75,134.74,22.94630081]
[1726134191171,14.6993,134.75,134.74,29.15387433]
[1726134191668,3.3393,134.75,134.74,29.15387433]
[1726134191873,14.6993,134.75,134.74,29.15387433]
[1726134192563,14.6993,134.75,134.74,22.94630081]
[1726134192872,14.6993,134.75,134.74,29.15388471]
[1726134193986,14.6993,134.75,134.74,22.94630081]
[1726134194770,11.36,134.75,134.74,22.94630081]
[1726134195474,14.6993,134.75,134.74,22.94630081]
[1726134195775,11.36,134.75,134.74,22.94630081]
[1726134197381,14.6993,134.75,134.74,22.94630081]
[1726134200777,11.36,134.75,134.74,22.94630081]
[1726134202581,14.6993,134.75,134.74,22.94630081]
[1726134235540,3.3393,134.75,134.74,22.94630081]
[1726134235698,14.6993,134.75,134.74,22.94630081]
[1726134243410,14.6993,134.75,134.74,22.56630081]
[1726134248608,14.6993,134.75,134.7,5.70925066]
[1726134248609,3.3398,134.74,134.7,5.70925066]
[1726134248908,11.36,134.72,134.7,2.36885066]
[1726134249313,14.7001,134.72,134.7,2.36885066]
[1726134250512,11.36,134.71,134.7,2.36885066]
[1726134250904,14.7003,134.71,134.7,2.36885066]
[1726134265222,11.36,134.71,134.7,2.36885066]
[1726134266327,14.7003,134.71,134.7,2.36885066]
[1726134267931,11.36,134.71,134.67,1.3364]
[1726134268125,11.36,134.69,134.67,1.3364]
[1726134268521,11.36,134.69,134.66,38.37717008]
[1726134268739,11.36,134.67,134.66,38.37717008]
[1726134270033,107.16400616,134.7,134.66,38.37717008]
[1726134270034,110.50460616,134.7,134.66,38.37717008]
[1726134270239,103.43359981,134.7,134.66,38.37717008]
[1726134270443,11.36,134.68,134.66,38.37717008]
[1726134271538,11.36,134.68,134.66,41.71857008]
[1726134272641,103.43359981,134.7,134.67,3.3413]
[1726134272833,11.36,134.69,134.67,3.3413]
[1726134273029,11.36,134.69,134.66,38.37717008]
[1726134273431,11.36,134.69,134.66,41.71857008]
[1726134274337,103.43359981,134.7,134.67,3.3413]
[1726134274536,114.79359981,134.7,134.67,3.3413]
[1726134275137,114.79359981,134.7,134.68,3.341]
[1726134275736,118.13419981,134.7,134.67,3.3412]
[1726134276139,11.36,134.69,134.67,3.3412]
[1726134279260,118.13419981,134.7,134.67,3.3412]
[1726134279551,118.13419981,134.7,134.66,38.37717008]
[1726134279552,114.79359981,134.7,134.68,3.3409]
[1726134283962,103.43359981,134.7,134.68,3.3409]
[1726134286045,103.43359981,134.7,134.67,1.354]
[1726134286046,103.43359981,134.7,134.69,3.3408]
[1726134287309,103.43359981,134.7,134.68,4.777]
[1726134291258,103.43359981,134.7,134.69,3.3408]
[1726134291518,103.43359981,134.7,134.68,1.4361]
[1726134291967,106.77419981,134.7,134.68,4.777]
[1726134300770,103.43359981,134.7,134.68,4.777]
[1726134301875,231.67877572,134.84,134.68,12.7961]
[1726134302167,11.36,134.78,134.72,11.36]
[1726134302376,3.3392,134.76,134.72,14.6999]
[1726134302563,11.36,134.78,134.69,1.3412]
[1726134302758,3.3395,134.75,134.71,3.3401]
[1726134303067,11.36,134.77,134.71,3.3401]
[1726134303377,3.3395,134.75,134.71,3.3401]
[1726134304373,3.3395,134.75,134.72,3.34]
[1726134305274,2.6756,134.81,134.71,11.36]
[1726134305479,1.15214744,134.8,134.73,11.36]
[1726134305669,1.15214744,134.8,134.74,3.3394]
[1726134305670,3.3387,134.78,134.74,3.3394]
[1726134306072,11.36,134.79,134.73,11.36]
[1726134306778,3.3386,134.78,134.74,3.3394]
[1726134314584,3.3388,134.77,134.73,14.6997]
[1726134315381,3.3391,134.76,134.73,14.6997]
[1726134316379,3.3387,134.78,134.75,11.36]
[1726134317777,3.3387,134.78,134.75,14.6992]
[1726134318687,14.0356,134.81,134.76,3.339]
[1726134318887,1.15215379,134.8,134.76,3.339]
[1726134319277,1.15215379,134.8,134.77,3.3388]
[1726134319503,1.15215379,134.8,134.77,11.36]
[1726134319680,15.03877572,134.84,134.77,11.36]
[1726134319978,3.3378,134.82,134.78,3.3385]
[1726134320179,1.15229026,134.81,134.78,3.3385]
[1726134320380,3.3378,134.82,134.78,3.3385]